[Event "Titled Tuesday Blitz June 20 Early 2023"]
[White "Starozhilov, Leonid"]
[Black "Kochiev, Ivan"]
[WhiteFideId "14106752"]
[BlackFideId "2917890"]
[WhiteElo "2352"]
[BlackElo "2287"]
[Result "1-0"]
[Round "10"]
[TimeControl "180+2"]
[Date "2023.06.20"]
[WhiteClock "0:02:07"]
[BlackClock "0:01:54"]
[Board "78"]

1. e4 {[%clk 0:03:00]}  c5 {[%clk 0:02:57]} 2. Nf3 {[%clk 0:03:00]}  d6 {[%clk 0:02:57]} 3. Bb5+ {[%clk 0:03:01]}  Nc6 {[%clk 0:02:57]} 4. O-O {[%clk 0:03:01]}  Bd7 {[%clk 0:02:57]} 5. Re1 {[%clk 0:03:01]}  a6 {[%clk 0:02:57]} 6. Bxc6 {[%clk 0:03:02]}  Bxc6 {[%clk 0:02:55]} 7. c3 {[%clk 0:03:02]}  Nf6 {[%clk 0:02:54]} 8. d4 {[%clk 0:03:03]}  cxd4 {[%clk 0:02:46]} 9. cxd4 {[%clk 0:03:03]}  g6 {[%clk 0:02:36]} 10. Nc3 {[%clk 0:02:51]}  Bg7 {[%clk 0:02:35]} 11. Bg5 {[%clk 0:02:51]}  O-O {[%clk 0:02:34]} 12. d5 {[%clk 0:02:48]}  Bd7 {[%clk 0:02:34]} 13. h3 {[%clk 0:02:49]}  b5 {[%clk 0:02:33]} 14. a3 {[%clk 0:02:36]}  Rc8 {[%clk 0:02:32]} 15. Qd2 {[%clk 0:02:36]}  Be8 {[%clk 0:02:16]} 16. Bh6 {[%clk 0:02:26]}  Nd7 {[%clk 0:02:14]} 17. Bxg7 {[%clk 0:02:25]}  Kxg7 {[%clk 0:02:15]} 18. Rac1 {[%clk 0:02:20]}  Nc5 {[%clk 0:02:07]} 19. Nd4 {[%clk 0:02:13]}  e5 {[%clk 0:02:00]} 20. dxe6 {[%clk 0:02:09]}  fxe6 {[%clk 0:02:01]} 21. b4 {[%clk 0:02:07]}  e5 {[%clk 0:01:55]} 22. bxc5 {[%clk 0:02:07]}  exd4 {[%clk 0:01:54]} 23. Qxd4+ {[%clk 0:02:07]} 1-0


[Site "https://www.chess.com"]

[Event "Titled Tuesday Blitz June 20 Early 2023"]
[White "Nagare Kaivalya Sandip"]
[Black "Moskvin, Anatoly"]
[WhiteFideId "25957929"]
[BlackFideId "24199990"]
[WhiteElo "2024"]
[BlackElo "2104"]
[Result "1-0"]
[Round "10"]
[TimeControl "180+2"]
[Date "2023.06.20"]
[WhiteClock "0:01:32"]
[BlackClock "0:00:00"]
[Board "80"]

1. e4 {[%clk 0:03:00]}  e5 {[%clk 0:03:00]} 2. Nf3 {[%clk 0:03:00]}  Nc6 {[%clk 0:03:00]} 3. Bb5 {[%clk 0:03:00]}  Nge7 {[%clk 0:03:01]} 4. c3 {[%clk 0:02:59]}  a6 {[%clk 0:03:01]} 5. Ba4 {[%clk 0:02:59]}  d6 {[%clk 0:03:01]} 6. d4 {[%clk 0:02:59]}  Bd7 {[%clk 0:03:02]} 7. O-O {[%clk 0:02:58]}  Ng6 {[%clk 0:03:03]} 8. d5 {[%clk 0:02:52]}  Nb8 {[%clk 0:03:03]} 9. c4 {[%clk 0:02:49]}  Be7 {[%clk 0:03:02]} 10. Nc3 {[%clk 0:02:47]}  h6 {[%clk 0:03:01]} 11. Be3 {[%clk 0:02:45]}  Bg5 {[%clk 0:03:01]} 12. b4 {[%clk 0:02:40]}  a5 {[%clk 0:02:55]} 13. a3 {[%clk 0:02:37]}  O-O {[%clk 0:02:53]} 14. Nxg5 {[%clk 0:02:35]}  hxg5 {[%clk 0:02:52]} 15. g3 {[%clk 0:02:34]}  f6 {[%clk 0:02:23]} 16. Bc2 {[%clk 0:02:27]}  Bh3 {[%clk 0:02:15]} 17. Qh5 {[%clk 0:02:24]}  Bxf1 {[%clk 0:02:07]} 18. Rxf1 {[%clk 0:02:23]}  Kf7 {[%clk 0:01:54]} 19. Bd1 {[%clk 0:02:15]}  Rh8 {[%clk 0:01:51]} 20. Qg4 {[%clk 0:02:11]}  Qd7 {[%clk 0:01:38]} 21. c5 {[%clk 0:02:05]}  axb4 {[%clk 0:01:28]} 22. axb4 {[%clk 0:02:05]}  Ra1 {[%clk 0:01:28]} 23. Qxd7+ {[%clk 0:01:53]}  Nxd7 {[%clk 0:01:29]} 24. Bg4 {[%clk 0:01:53]}  Rxf1+ {[%clk 0:01:28]} 25. Kxf1 {[%clk 0:01:54]}  Ngf8 {[%clk 0:01:27]} 26. c6 {[%clk 0:01:49]}  bxc6 {[%clk 0:01:24]} 27. dxc6 {[%clk 0:01:50]}  Ke8 {[%clk 0:01:02]} 28. Nd5 {[%clk 0:01:46]}  Kd8 {[%clk 0:01:01]} 29. b5 {[%clk 0:01:43]}  g6 {[%clk 0:00:05]} 30. b6 {[%clk 0:01:36]}  cxb6 {[%clk 0:00:04]} 31. Bxb6+ {[%clk 0:01:31]}  Nxb6 {[%clk 0:00:02]} 32. c7+ {[%clk 0:01:32]}  Ke8 {[%clk 0:00:02]} 33. Nxb6 {[%clk 0:01:32]}  f5 {[%clk 0:00:00]} 34. c8=Q+ {[%clk 0:01:32]} 1-0


[Site "https://www.chess.com"]

[Event "Titled Tuesday Blitz June 20 Early 2023"]
[White "Weishaeutel, Moritz"]
[Black "Santos Flores, Alberto"]
[WhiteFideId "12967300"]
[BlackFideId "3601234"]
[WhiteElo "2301"]
[BlackElo "2235"]
[Result "1-0"]
[Round "10"]
[TimeControl "180+2"]
[Date "2023.06.20"]
[WhiteClock "0:02:00"]
[BlackClock "0:02:01"]
[Board "81"]

1. e4 {[%clk 0:03:00]}  c5 {[%clk 0:02:54]} 2. d4 {[%clk 0:03:01]}  cxd4 {[%clk 0:02:54]} 3. c3 {[%clk 0:03:02]}  g6 {[%clk 0:02:54]} 4. cxd4 {[%clk 0:03:01]}  d5 {[%clk 0:02:54]} 5. e5 {[%clk 0:03:02]}  Nc6 {[%clk 0:02:54]} 6. Nf3 {[%clk 0:03:02]}  Bg4 {[%clk 0:02:54]} 7. Bb5 {[%clk 0:03:01]}  Bg7 {[%clk 0:02:53]} 8. O-O {[%clk 0:03:00]}  e6 {[%clk 0:02:53]} 9. h3 {[%clk 0:03:00]}  Bxf3 {[%clk 0:02:53]} 10. Qxf3 {[%clk 0:03:01]}  Ne7 {[%clk 0:02:53]} 11. Bg5 {[%clk 0:03:01]}  Qb6 {[%clk 0:02:52]} 12. Bxe7 {[%clk 0:02:46]}  Qxb5 {[%clk 0:02:43]} 13. Nc3 {[%clk 0:02:43]}  Qb6 {[%clk 0:02:33]} 14. Bc5 {[%clk 0:02:43]}  Nxd4 {[%clk 0:02:29]} 15. Bxd4 {[%clk 0:02:43]}  Qxd4 {[%clk 0:02:29]} 16. Nb5 {[%clk 0:02:44]}  Qxe5 {[%clk 0:02:26]} 17. Rfe1 {[%clk 0:02:41]}  Qb8 {[%clk 0:02:24]} 18. Qa3 {[%clk 0:02:40]}  Bf8 {[%clk 0:02:22]} 19. Qa4 {[%clk 0:02:40]}  Kd8 {[%clk 0:02:21]} 20. Qd4 {[%clk 0:02:27]}  Rg8 {[%clk 0:02:09]} 21. Qf6+ {[%clk 0:02:27]}  Ke8 {[%clk 0:02:07]} 22. Rxe6+ {[%clk 0:02:03]}  fxe6 {[%clk 0:02:06]} 23. Qxe6+ {[%clk 0:02:04]}  Be7 {[%clk 0:02:06]} 24. Qxg8+ {[%clk 0:02:04]}  Kd7 {[%clk 0:02:07]} 25. Qxd5+ {[%clk 0:02:04]}  Ke8 {[%clk 0:02:01]} 26. Re1 {[%clk 0:02:00]} 1-0


[Site "https://www.chess.com"]

[Event "Titled Tuesday Blitz June 20 Early 2023"]
[White "Janaszak, Dawid"]
[Black "DanyKopy"]
[WhiteFideId "1119206"]
[WhiteElo "2220"]
[BlackElo "2465"]
[Result "1-0"]
[Round "10"]
[TimeControl "180+2"]
[Date "2023.06.20"]
[WhiteClock "0:00:35"]
[BlackClock "0:00:00"]
[Board "84"]

1. d4 {[%clk 0:03:00]}  Nf6 {[%clk 0:02:57]} 2. c4 {[%clk 0:03:00]}  e6 {[%clk 0:02:57]} 3. g4 {[%clk 0:02:59]}  h6 {[%clk 0:02:48]} 4. Nc3 {[%clk 0:02:56]}  d5 {[%clk 0:02:48]} 5. e3 {[%clk 0:02:46]}  c5 {[%clk 0:02:45]} 6. h4 {[%clk 0:02:33]}  Nc6 {[%clk 0:02:42]} 7. cxd5 {[%clk 0:02:22]}  exd5 {[%clk 0:02:38]} 8. f3 {[%clk 0:02:16]}  Bd6 {[%clk 0:02:26]} 9. Nge2 {[%clk 0:02:16]}  cxd4 {[%clk 0:02:23]} 10. exd4 {[%clk 0:02:16]}  O-O {[%clk 0:02:01]} 11. g5 {[%clk 0:02:13]}  Nh5 {[%clk 0:02:00]} 12. gxh6 {[%clk 0:01:50]}  g6 {[%clk 0:02:00]} 13. Bg5 {[%clk 0:01:49]}  Qb6 {[%clk 0:01:39]} 14. Nxd5 {[%clk 0:01:41]}  Qxb2 {[%clk 0:01:25]} 15. Rb1 {[%clk 0:01:41]}  Qxa2 {[%clk 0:01:22]} 16. Ndc3 {[%clk 0:01:24]}  Qa5 {[%clk 0:01:15]} 17. Kf2 {[%clk 0:01:22]}  Bf5 {[%clk 0:00:55]} 18. Ne4 {[%clk 0:01:23]}  Bxe4 {[%clk 0:00:34]} 19. fxe4 {[%clk 0:01:22]}  Rae8 {[%clk 0:00:34]} 20. Bg2 {[%clk 0:01:18]}  f6 {[%clk 0:00:11]} 21. Be3 {[%clk 0:01:18]}  f5 {[%clk 0:00:10]} 22. e5 {[%clk 0:01:18]}  f4 {[%clk 0:00:10]} 23. Bd2 {[%clk 0:01:07]}  Qd8 {[%clk 0:00:02]} 24. exd6 {[%clk 0:01:07]}  f3 {[%clk 0:00:01]} 25. Qb3+ {[%clk 0:01:07]}  Kh7 {[%clk 0:00:01]} 26. Bxf3 {[%clk 0:01:07]}  Qxd6 {[%clk 0:00:01]} 27. Kg1 {[%clk 0:00:36]}  Re7 {[%clk 0:00:00]} 28. d5 {[%clk 0:00:35]} 1-0


[Site "https://www.chess.com"]

[Event "Titled Tuesday Blitz June 20 Early 2023"]
[White "Pastar, Slaven"]
[Black "Manukian, Artak"]
[WhiteFideId "14402718"]
[BlackFideId "13301373"]
[WhiteElo "2219"]
[BlackElo "2130"]
[Result "1/2-1/2"]
[Round "10"]
[TimeControl "180+2"]
[Date "2023.06.20"]
[WhiteClock "0:00:10"]
[BlackClock "0:00:17"]
[Board "85"]

1. b3 {[%clk 0:03:00]}  Nf6 {[%clk 0:02:57]} 2. Bb2 {[%clk 0:03:01]}  g6 {[%clk 0:02:57]} 3. Nf3 {[%clk 0:02:59]}  Bg7 {[%clk 0:02:58]} 4. g3 {[%clk 0:02:59]}  O-O {[%clk 0:02:57]} 5. Bg2 {[%clk 0:03:00]}  c5 {[%clk 0:02:58]} 6. c4 {[%clk 0:03:00]}  d6 {[%clk 0:02:57]} 7. d4 {[%clk 0:02:59]}  Ne4 {[%clk 0:02:52]} 8. O-O {[%clk 0:02:58]}  Nc6 {[%clk 0:02:51]} 9. Nbd2 {[%clk 0:02:57]}  Bf5 {[%clk 0:02:46]} 10. e3 {[%clk 0:02:53]}  e5 {[%clk 0:02:40]} 11. d5 {[%clk 0:02:40]}  Nxd2 {[%clk 0:02:39]} 12. Qxd2 {[%clk 0:02:32]}  Ne7 {[%clk 0:02:38]} 13. Nh4 {[%clk 0:02:26]}  Bd7 {[%clk 0:02:37]} 14. e4 {[%clk 0:02:26]}  f5 {[%clk 0:02:36]} 15. f4 {[%clk 0:02:21]}  exf4 {[%clk 0:02:32]} 16. Bxg7 {[%clk 0:02:21]}  Kxg7 {[%clk 0:02:32]} 17. Qxf4 {[%clk 0:02:19]}  fxe4 {[%clk 0:02:30]} 18. Qxd6 {[%clk 0:02:18]}  Bf5 {[%clk 0:02:23]} 19. Qxc5 {[%clk 0:02:08]}  Qb6 {[%clk 0:02:17]} 20. Qxb6 {[%clk 0:02:05]}  axb6 {[%clk 0:02:18]} 21. a4 {[%clk 0:02:02]}  Nc8 {[%clk 0:02:11]} 22. h3 {[%clk 0:01:45]}  h5 {[%clk 0:02:07]} 23. g4 {[%clk 0:01:36]}  hxg4 {[%clk 0:02:07]} 24. hxg4 {[%clk 0:01:37]}  Bxg4 {[%clk 0:02:07]} 25. Rxf8 {[%clk 0:01:37]}  Kxf8 {[%clk 0:02:08]} 26. Nxg6+ {[%clk 0:01:36]}  Kg7 {[%clk 0:02:08]} 27. Bxe4 {[%clk 0:01:35]}  Nd6 {[%clk 0:02:08]} 28. Bd3 {[%clk 0:01:34]}  Bf5 {[%clk 0:01:57]} 29. Bxf5 {[%clk 0:01:31]}  Nxf5 {[%clk 0:01:58]} 30. Nf4 {[%clk 0:01:29]}  Kf6 {[%clk 0:01:54]} 31. Ne6 {[%clk 0:01:25]}  b5 {[%clk 0:01:43]} 32. cxb5 {[%clk 0:01:16]}  Ke5 {[%clk 0:01:34]} 33. Kf2 {[%clk 0:01:16]}  Rc8 {[%clk 0:01:26]} 34. Rd1 {[%clk 0:01:04]}  Rc3 {[%clk 0:01:15]} 35. Nd8 {[%clk 0:00:59]}  Nd6 {[%clk 0:01:12]} 36. a5 {[%clk 0:00:38]}  Rxb3 {[%clk 0:01:03]} 37. a6 {[%clk 0:00:38]}  Rxb5 {[%clk 0:00:55]} 38. Nxb7 {[%clk 0:00:14]}  Nxb7 {[%clk 0:00:53]} 39. Ra1 {[%clk 0:00:14]}  Rxd5 {[%clk 0:00:38]} 40. a7 {[%clk 0:00:13]}  Rd8 {[%clk 0:00:37]} 41. a8=Q {[%clk 0:00:08]}  Rxa8 {[%clk 0:00:37]} 42. Rxa8 {[%clk 0:00:08]}  Nd6 {[%clk 0:00:38]} 43. Ra5+ {[%clk 0:00:08]}  Kd4 {[%clk 0:00:37]} 44. Kf3 {[%clk 0:00:07]}  Nc4 {[%clk 0:00:36]} 45. Ra8 {[%clk 0:00:07]}  Ne5+ {[%clk 0:00:36]} 46. Kf4 {[%clk 0:00:07]}  Nd3+ {[%clk 0:00:36]} 47. Kf5 {[%clk 0:00:08]}  Nc5 {[%clk 0:00:37]} 48. Rd8+ {[%clk 0:00:08]}  Kc4 {[%clk 0:00:37]} 49. Ke5 {[%clk 0:00:08]}  Nd3+ {[%clk 0:00:37]} 50. Ke4 {[%clk 0:00:08]}  Nc5+ {[%clk 0:00:37]} 51. Ke3 {[%clk 0:00:09]}  Kb5 {[%clk 0:00:35]} 52. Rc8 {[%clk 0:00:08]}  Kb6 {[%clk 0:00:34]} 53. Kd4 {[%clk 0:00:07]}  Ne6+ {[%clk 0:00:34]} 54. Kd5 {[%clk 0:00:05]}  Nc7+ {[%clk 0:00:34]} 55. Kd6 {[%clk 0:00:05]}  Nb5+ {[%clk 0:00:34]} 56. Kd7 {[%clk 0:00:04]}  Ka5 {[%clk 0:00:31]} 57. Rc1 {[%clk 0:00:05]}  Kb4 {[%clk 0:00:31]} 58. Kc6 {[%clk 0:00:05]}  Nd4+ {[%clk 0:00:31]} 59. Kd5 {[%clk 0:00:04]}  Nb3 {[%clk 0:00:31]} 60. Rc8 {[%clk 0:00:03]}  Nd2 {[%clk 0:00:21]} 61. Rc7 {[%clk 0:00:04]}  Nb3 {[%clk 0:00:20]} 62. Rb7+ {[%clk 0:00:02]}  Kc3 {[%clk 0:00:21]} 63. Rc7+ {[%clk 0:00:02]}  Kd3 {[%clk 0:00:21]} 64. Rc4 {[%clk 0:00:02]}  Nd2 {[%clk 0:00:21]} 65. Rh4 {[%clk 0:00:02]}  Ke3 {[%clk 0:00:20]} 66. Rh3+ {[%clk 0:00:03]}  Nf3 {[%clk 0:00:18]} 67. Rh1 {[%clk 0:00:03]}  Kf2 {[%clk 0:00:18]} 68. Ra1 {[%clk 0:00:04]}  Ke3 {[%clk 0:00:18]} 69. Ra2 {[%clk 0:00:04]}  Kf4 {[%clk 0:00:18]} 70. Ra3 {[%clk 0:00:04]}  Kg4 {[%clk 0:00:19]} 71. Ke4 {[%clk 0:00:05]}  Ng5+ {[%clk 0:00:19]} 72. Ke3 {[%clk 0:00:06]}  Kf5 {[%clk 0:00:19]} 73. Ra5+ {[%clk 0:00:06]}  Kf6 {[%clk 0:00:18]} 74. Kf4 {[%clk 0:00:07]}  Ne6+ {[%clk 0:00:19]} 75. Kg4 {[%clk 0:00:08]}  Ke7 {[%clk 0:00:18]} 76. Ra6 {[%clk 0:00:09]}  Nd4 {[%clk 0:00:16]} 77. Kg5 {[%clk 0:00:08]}  Kd7 {[%clk 0:00:17]} 78. Kf6 {[%clk 0:00:08]}  Nc6 {[%clk 0:00:17]} 79. Ra7+ {[%clk 0:00:08]}  Kd6 {[%clk 0:00:17]} 80. Rh7 {[%clk 0:00:07]}  Nd4 {[%clk 0:00:17]} 81. Rh1 {[%clk 0:00:08]}  Kd5 {[%clk 0:00:17]} 82. Rd1 {[%clk 0:00:09]}  Ke4 {[%clk 0:00:18]} 83. Kg5 {[%clk 0:00:09]}  Nf3+ {[%clk 0:00:18]} 84. Kg4 {[%clk 0:00:09]}  Ne5+ {[%clk 0:00:18]} 85. Kg3 {[%clk 0:00:09]}  Nd3 {[%clk 0:00:18]} 86. Re1+ {[%clk 0:00:10]}  Nxe1 {[%clk 0:00:17]} 1/2-1/2


[Site "https://www.chess.com"]

[Event "Titled Tuesday Blitz June 20 Early 2023"]
[White "Savitha Shri B"]
[Black "brm72"]
[WhiteFideId "35061887"]
[WhiteElo "2172"]
[BlackElo "2552"]
[Result "1-0"]
[Round "10"]
[TimeControl "180+2"]
[Date "2023.06.20"]
[WhiteClock "0:00:19"]
[BlackClock "0:00:02"]
[Board "88"]

1. d4 {[%clk 0:02:54]}  Nf6 {[%clk 0:02:52]} 2. Nf3 {[%clk 0:02:53]}  g6 {[%clk 0:02:52]} 3. Nc3 {[%clk 0:02:53]}  d5 {[%clk 0:02:52]} 4. Bg5 {[%clk 0:02:52]}  Bg7 {[%clk 0:02:52]} 5. h4 {[%clk 0:02:52]}  c5 {[%clk 0:02:52]} 6. e3 {[%clk 0:02:52]}  Nc6 {[%clk 0:02:51]} 7. Bb5 {[%clk 0:02:52]}  cxd4 {[%clk 0:02:48]} 8. exd4 {[%clk 0:02:53]}  Bg4 {[%clk 0:02:45]} 9. Qd3 {[%clk 0:02:53]}  Bxf3 {[%clk 0:02:41]} 10. Qxf3 {[%clk 0:02:51]}  a6 {[%clk 0:02:39]} 11. Bxc6+ {[%clk 0:02:47]}  bxc6 {[%clk 0:02:39]} 12. O-O {[%clk 0:02:40]}  O-O {[%clk 0:02:38]} 13. Rad1 {[%clk 0:02:27]}  Rb8 {[%clk 0:02:33]} 14. b3 {[%clk 0:02:28]}  Re8 {[%clk 0:02:29]} 15. Bxf6 {[%clk 0:02:27]}  Bxf6 {[%clk 0:02:29]} 16. h5 {[%clk 0:02:28]}  Rb4 {[%clk 0:02:20]} 17. Ne2 {[%clk 0:02:25]}  a5 {[%clk 0:02:19]} 18. c3 {[%clk 0:02:24]}  Rb8 {[%clk 0:02:18]} 19. Ng3 {[%clk 0:02:22]}  e6 {[%clk 0:02:11]} 20. hxg6 {[%clk 0:02:20]}  hxg6 {[%clk 0:02:11]} 21. Rfe1 {[%clk 0:02:21]}  Kg7 {[%clk 0:02:11]} 22. Re3 {[%clk 0:02:16]}  Rh8 {[%clk 0:02:09]} 23. c4 {[%clk 0:02:17]}  Qd6 {[%clk 0:02:06]} 24. c5 {[%clk 0:02:16]}  Qc7 {[%clk 0:02:04]} 25. Kf1 {[%clk 0:01:58]}  Rb4 {[%clk 0:02:03]} 26. Red3 {[%clk 0:01:54]}  Rh4 {[%clk 0:02:03]} 27. Qe3 {[%clk 0:01:53]}  a4 {[%clk 0:01:56]} 28. a3 {[%clk 0:01:52]}  Rxb3 {[%clk 0:01:55]} 29. Rxb3 {[%clk 0:01:52]}  axb3 {[%clk 0:01:56]} 30. Qxb3 {[%clk 0:01:51]}  Rxd4 {[%clk 0:01:56]} 31. Rxd4 {[%clk 0:01:49]}  Bxd4 {[%clk 0:01:57]} 32. Qb4 {[%clk 0:01:48]}  Bf6 {[%clk 0:01:52]} 33. a4 {[%clk 0:01:46]}  Qa7 {[%clk 0:01:32]} 34. Ne2 {[%clk 0:01:03]}  Qa6 {[%clk 0:01:26]} 35. a5 {[%clk 0:00:53]}  Bd8 {[%clk 0:01:21]} 36. Qd4+ {[%clk 0:00:49]}  f6 {[%clk 0:01:21]} 37. Qe3 {[%clk 0:00:34]}  e5 {[%clk 0:01:17]} 38. Qh3 {[%clk 0:00:32]}  f5 {[%clk 0:01:15]} 39. Qe3 {[%clk 0:00:33]}  Bc7 {[%clk 0:00:54]} 40. Qg5 {[%clk 0:00:31]}  Kf7 {[%clk 0:00:54]} 41. Qh6 {[%clk 0:00:30]}  Bxa5 {[%clk 0:00:22]} 42. Qh7+ {[%clk 0:00:29]}  Kf6 {[%clk 0:00:22]} 43. Qh8+ {[%clk 0:00:29]}  Kg5 {[%clk 0:00:17]} 44. g3 {[%clk 0:00:29]}  f4 {[%clk 0:00:16]} 45. Qh4+ {[%clk 0:00:22]}  Kf5 {[%clk 0:00:16]} 46. gxf4 {[%clk 0:00:23]}  Ke4 {[%clk 0:00:07]} 47. fxe5+ {[%clk 0:00:23]}  Kxe5 {[%clk 0:00:08]} 48. Qg5+ {[%clk 0:00:22]}  Ke4 {[%clk 0:00:08]} 49. Qxg6+ {[%clk 0:00:22]}  Ke5 {[%clk 0:00:06]} 50. Qd6+ {[%clk 0:00:22]}  Kf5 {[%clk 0:00:05]} 51. Qd7+ {[%clk 0:00:21]}  Kf6 {[%clk 0:00:06]} 52. Qd6+ {[%clk 0:00:20]}  Kf5 {[%clk 0:00:06]} 53. Qf4+ {[%clk 0:00:20]}  Ke6 {[%clk 0:00:06]} 54. Qe3+ {[%clk 0:00:20]}  Kf7 {[%clk 0:00:06]} 55. Kg2 {[%clk 0:00:21]}  Qc4 {[%clk 0:00:06]} 56. Nd4 {[%clk 0:00:21]}  Qxc5 {[%clk 0:00:05]} 57. Qe6+ {[%clk 0:00:22]}  Kf8 {[%clk 0:00:04]} 58. Qc8+ {[%clk 0:00:20]}  Kf7 {[%clk 0:00:04]} 59. Qd7+ {[%clk 0:00:19]}  Kf8 {[%clk 0:00:02]} 60. Ne6+ {[%clk 0:00:19]} 1-0


[Site "https://www.chess.com"]

[Event "Titled Tuesday Blitz June 20 Early 2023"]
[White "Grossboss19"]
[Black "Ambartsumova, Karina"]
[BlackFideId "4166299"]
[WhiteElo "2449"]
[BlackElo "2240"]
[Result "0-1"]
[Round "10"]
[TimeControl "180+2"]
[Date "2023.06.20"]
[WhiteClock "0:00:33"]
[BlackClock "0:00:52"]
[Board "89"]

1. d4 {[%clk 0:02:55]}  Nf6 {[%clk 0:02:59]} 2. c4 {[%clk 0:02:52]}  e6 {[%clk 0:02:59]} 3. Nc3 {[%clk 0:02:47]}  d5 {[%clk 0:03:00]} 4. cxd5 {[%clk 0:02:46]}  exd5 {[%clk 0:03:01]} 5. Bg5 {[%clk 0:02:46]}  c6 {[%clk 0:03:02]} 6. e3 {[%clk 0:02:44]}  Be7 {[%clk 0:03:02]} 7. Bd3 {[%clk 0:02:41]}  Nbd7 {[%clk 0:03:03]} 8. Qc2 {[%clk 0:02:37]}  h6 {[%clk 0:03:02]} 9. Bh4 {[%clk 0:02:36]}  Nh5 {[%clk 0:03:02]} 10. Bxe7 {[%clk 0:02:29]}  Qxe7 {[%clk 0:03:02]} 11. Nge2 {[%clk 0:02:29]}  Nb6 {[%clk 0:03:02]} 12. b3 {[%clk 0:02:22]}  Bd7 {[%clk 0:03:00]} 13. Qd2 {[%clk 0:02:19]}  Nf6 {[%clk 0:02:58]} 14. O-O {[%clk 0:02:17]}  O-O {[%clk 0:02:54]} 15. Ng3 {[%clk 0:02:14]}  Rfe8 {[%clk 0:02:48]} 16. Rae1 {[%clk 0:02:12]}  a5 {[%clk 0:02:47]} 17. f3 {[%clk 0:01:49]}  Qb4 {[%clk 0:02:42]} 18. Nb1 {[%clk 0:01:44]}  Re7 {[%clk 0:02:42]} 19. Bc2 {[%clk 0:01:27]}  c5 {[%clk 0:02:34]} 20. dxc5 {[%clk 0:01:20]}  Qxc5 {[%clk 0:02:31]} 21. Kh1 {[%clk 0:01:13]}  Rae8 {[%clk 0:02:24]} 22. e4 {[%clk 0:01:07]}  Bb5 {[%clk 0:02:23]} 23. Rg1 {[%clk 0:01:00]}  dxe4 {[%clk 0:02:09]} 24. Nxe4 {[%clk 0:00:59]}  Nxe4 {[%clk 0:02:04]} 25. Bxe4 {[%clk 0:01:00]}  a4 {[%clk 0:01:54]} 26. Rc1 {[%clk 0:00:58]}  Qh5 {[%clk 0:01:34]} 27. Nc3 {[%clk 0:00:54]}  axb3 {[%clk 0:01:25]} 28. axb3 {[%clk 0:00:53]}  Rd7 {[%clk 0:01:06]} 29. Qf2 {[%clk 0:00:48]}  Nc8 {[%clk 0:01:02]} 30. Rgd1 {[%clk 0:00:37]}  Nd6 {[%clk 0:00:55]} 31. Nxb5 {[%clk 0:00:31]}  Nxe4 {[%clk 0:00:54]} 32. fxe4 {[%clk 0:00:31]}  Rxd1+ {[%clk 0:00:53]} 33. Rxd1 {[%clk 0:00:30]}  Qxd1+ {[%clk 0:00:54]} 34. Qg1 {[%clk 0:00:28]}  Qxg1+ {[%clk 0:00:51]} 35. Kxg1 {[%clk 0:00:29]}  Rxe4 {[%clk 0:00:51]} 36. Nd6 {[%clk 0:00:29]}  Rb4 {[%clk 0:00:50]} 37. Kf2 {[%clk 0:00:29]}  Rxb3 {[%clk 0:00:50]} 38. Ke2 {[%clk 0:00:30]}  Rb2+ {[%clk 0:00:50]} 39. Kf3 {[%clk 0:00:27]}  b5 {[%clk 0:00:51]} 40. Ke3 {[%clk 0:00:27]}  Rxg2 {[%clk 0:00:50]} 41. Nxb5 {[%clk 0:00:27]}  Rxh2 {[%clk 0:00:50]} 42. Nd4 {[%clk 0:00:28]}  Rh5 {[%clk 0:00:50]} 43. Nf3 {[%clk 0:00:29]}  f6 {[%clk 0:00:49]} 44. Kf4 {[%clk 0:00:29]}  Kf7 {[%clk 0:00:49]} 45. Kg4 {[%clk 0:00:29]}  Ra5 {[%clk 0:00:49]} 46. Nh4 {[%clk 0:00:30]}  h5+ {[%clk 0:00:49]} 47. Kg3 {[%clk 0:00:29]}  g5 {[%clk 0:00:49]} 48. Nf3 {[%clk 0:00:30]}  Ra3 {[%clk 0:00:49]} 49. Kg2 {[%clk 0:00:30]}  Rxf3 {[%clk 0:00:49]} 50. Kxf3 {[%clk 0:00:30]}  Kg6 {[%clk 0:00:50]} 51. Kg3 {[%clk 0:00:31]}  Kf5 {[%clk 0:00:51]} 52. Kg2 {[%clk 0:00:32]}  Kg4 {[%clk 0:00:51]} 53. Kh2 {[%clk 0:00:33]}  Kf3 {[%clk 0:00:51]} 54. Kg1 {[%clk 0:00:33]}  g4 {[%clk 0:00:51]} 55. Kf1 {[%clk 0:00:33]}  g3 {[%clk 0:00:51]} 56. Kg1 {[%clk 0:00:34]}  g2 {[%clk 0:00:51]} 57. Kh2 {[%clk 0:00:34]}  Kf2 {[%clk 0:00:52]} 58. Kh3 {[%clk 0:00:33]}  g1=Q {[%clk 0:00:52]} 0-1


[Site "https://www.chess.com"]